fUST/lending_fUST_20241210
["ID","MTS","AMOUNT","RATE_DAILY","PERIOD"]
[344771823,1733779839645,-151.0,0.00029996,7]
[344771824,1733779839655,-151.0,0.00029996,7]
[344771825,1733779839665,-151.0,0.00029996,7]
[344771826,1733779839674,-151.0,0.00029996,7]
[344771827,1733779839683,-151.0,0.00029996,7]
[344771828,1733779839693,-151.0,0.00029996,7]
[344771829,1733779839702,-151.0,0.00029996,7]
[344771830,1733779839711,-151.0,0.00029996,7]
[344771831,1733779839721,-151.0,0.00029996,7]
[344771832,1733779839730,-151.0,0.00029996,7]
[344771833,1733779839739,-151.0,0.00029996,7]
[344771834,1733779839749,-151.0,0.00029996,7]
[344771835,1733779839759,-254.465882,0.00029996,7]
[344771836,1733779839768,-151.0,0.00029996,7]
[344771837,1733779839777,-179.466424,0.00029996,7]
[344771838,1733779839786,-210.4,0.00029999,7]
[344771839,1733779839796,-500.0,0.00029999,7]
[344771840,1733779839805,-618.3,0.00029999,7]
[344771841,1733779839814,-500.0,0.00029999,7]
[344771842,1733779839823,-3121.26207826,0.0003,3]
[344771843,1733779839834,-6132.71,0.0003,30]
[344771844,1733779839846,-1946.0,0.0003,20]
[344771845,1733779839856,-1946.0,0.0003,20]
[344771846,1733779839870,-1946.0,0.0003,20]
[344771847,1733779839879,-1946.0,0.0003,20]
[344771848,1733779839889,-300.0,0.0003,14]
[344771849,1733779839898,-499.14,0.0003,2]
[344771850,1733779839907,-151.0,0.0003,15]
[344771851,1733779839917,-151.0,0.0003,20]
[344771852,1733779839927,-500.0,0.0003,7]
[344771853,1733779839937,-520.30686955,0.0003,7]
[344771854,1733779839947,-151.0,0.0003,120]
[344771855,1733779839956,-151.0,0.0003,120]
[344771856,1733779839965,-1704.0,0.0003,20]
[344771857,1733779839975,-1700.0,0.0003,20]
[344771859,1733779839985,-1700.0,0.0003,20]
[344771860,1733779839994,-1700.0,0.0003,20]
[344771861,1733779840003,-1700.0,0.0003,20]
[344771862,1733779840012,-1700.0,0.0003,20]
[344771863,1733779840022,-154.27,0.0003,31]
[344771864,1733779840031,-154.27,0.0003,31]
[344771865,1733779840041,-154.27,0.0003,31]
[344771866,1733779840050,-154.27,0.0003,31]
[344771867,1733779840060,-154.27,0.0003,31]
[344771868,1733779840069,-154.27,0.0003,31]
[344771869,1733779840079,-432.0,0.0003,2]
[344771872,1733779840088,-3023.19861762,0.0003,5]
[344771874,1733779840099,-300.0,0.0003,60]
[344771875,1733779840109,-618.3,0.00030008,7]
[344771878,1733779840118,-500.0,0.00030008,7]
[344771881,1733779840128,-151.0,0.00030009,7]
[344771883,1733779840137,-151.0,0.00030009,7]
[344771884,1733779840147,-151.0,0.00030009,7]
[344771885,1733779840156,-151.0,0.00030009,7]
[344771887,1733779840166,-151.0,0.00030009,7]
[344771888,1733779840175,-216.709565,0.00030009,7]
[344771890,1733779840184,-618.3,0.00030009,7]
[344771892,1733779840193,-618.3,0.00030009,7]
[344771895,1733779840203,-618.3,0.00030009,7]
[344771896,1733779840212,-618.3,0.00030009,7]
[344771898,1733779840222,-618.3,0.00030009,7]
[344771900,1733779840232,-618.3,0.00030009,7]
[344771902,1733779840241,-618.3,0.00030009,7]
[344771903,1733779840354,-618.3,0.00030009,7]
[344771904,1733779840364,-618.3,0.00030009,7]
[344771905,1733779840374,-618.3,0.00030009,7]
[344771907,1733779840384,-618.3,0.00030009,7]
[344771909,1733779840394,-618.3,0.00030009,7]
[344771910,1733779840403,-618.3,0.00030009,7]
[344771912,1733779840413,-618.3,0.00030009,7]
[344771914,1733779840423,-618.3,0.00030009,7]
[344771915,1733779840433,-618.44579979,0.00030009,7]
[344771917,1733779840443,-500.0,0.00030009,7]
[344771919,1733779840454,-415.70005923,0.00030009,7]
[344771920,1733779840463,-343.41526871,0.00030011,30]
[344771921,1733779840472,-151.515016,0.00030012,7]
[344771922,1733779840482,-196.156504,0.00030012,7]
[344771924,1733779840491,-196.156504,0.00030012,7]
[344771925,1733779840501,-196.156504,0.00030012,7]
[344771927,1733779840511,-196.156504,0.00030012,7]
[344771929,1733779840520,-196.156504,0.00030012,7]
[344771931,1733779840530,-196.156504,0.00030012,7]
[344771933,1733779840539,-196.156504,0.00030012,7]
[344771935,1733779840550,-196.156504,0.00030012,7]
[344771936,1733779840560,-196.156504,0.00030012,7]
[344771938,1733779840570,-196.156504,0.00030012,7]
[344771939,1733779840579,-196.156504,0.00030012,7]
[344771940,1733779840589,-196.156504,0.00030012,7]
[344771941,1733779840603,-196.156504,0.00030012,7]
[344771942,1733779840613,-196.156504,0.00030012,7]
[344771943,1733779840623,-196.156504,0.00030012,7]
[344771944,1733779840633,-196.156504,0.00030012,7]
[344771945,1733779840642,-196.156504,0.00030012,7]
[344771946,1733779840652,-196.156504,0.00030012,7]
[344771947,1733779840661,-196.156504,0.00030012,7]
[344771948,1733779840670,-196.156498,0.00030012,7]
[344771949,1733779840679,-151.0,0.00030012,7]
[344771950,1733779840689,-151.0,0.00030012,7]
[344771951,1733779840698,-151.0,0.00030012,7]
[344771952,1733779840707,-151.0,0.00030012,7]
[344771953,1733779840716,-151.0,0.00030012,7]
[344771954,1733779840726,-151.0,0.00030012,7]
[344771955,1733779840735,-151.0,0.00030012,7]
[344771956,1733779840744,-186.809643,0.00030012,7]
[344771957,1733779840754,-151.0,0.00030016,15]
[344771958,1733779840763,-151.0,0.00030016,15]
[344771959,1733779840772,-500.0,0.00030017,5]
[344771960,1733779840782,-524.24631258,0.00030017,11]
[344771961,1733779840791,-150.12,0.00030017,10]
[344771962,1733779840801,-153.11338333,0.00030017,10]
[344771963,1733779840810,-500.0,0.00030017,11]
[344771964,1733779840820,-203.36889971,0.00030017,10]
[344771965,1733779840829,-150.12,0.00030017,10]
[344771966,1733779840839,-150.12,0.00030017,10]
[344771967,1733779840852,-150.12,0.00030017,10]
[344771968,1733779840866,-165.08671155,0.00030017,10]
[344771969,1733779840875,-152.01859874,0.00030017,10]
[344771970,1733779840884,-151.4556297,0.00030017,10]
[344771971,1733779840895,-9784.84171521,0.00030019,2]
[344771972,1733779840905,-10057945.19917471,0.0003002,10]
[344771973,1733779840979,-800.8999935,0.0003002,10]
[344771974,1733779840991,-10981.59933071,0.0003002,10]
[344771975,1733779841003,-841.03154148,0.0003002,10]
[344771976,1733779841014,-424.30184868,0.0003002,10]
[344771977,1733779841026,-587.25600033,0.0003002,10]
[344771978,1733779841058,-3666.8856,0.00029716,2]
[344771979,1733779841075,-846.16267626,0.00029716,2]
[344771984,1733779841900,-940.1052454,0.00029716,2]
[344771985,1733779841912,-4045.01870603,0.00029716,2]
[344771986,1733779841922,-238404.29425859,0.0003002,10]
[344771987,1733779841933,-4409.71020316,0.0003002,10]
[344772020,1733779843877,-183.00404115,0.0002992,2]
[344772021,1733779843887,-44167.27888385,0.0003002,10]
[344772022,1733779843900,-11323.9906,0.0003002,10]
[344772023,1733779843921,-1755.74909781,0.0003002,10]
[344772058,1733779845703,300.0,0.00026,60]
[344772089,1733779846777,-4447.75,0.0003002,10]
[344772090,1733779846789,-9662.6,0.0003002,10]
[344772180,1733780240275,159.0,0.00026,60]
[344772209,1733780600463,299.058757,0.00013973,2]
[344772290,1733781032918,-299.058757,0.00020447,2]
[344772292,1733781032928,-299.058757,0.00026921,2]
[344772294,1733781032937,-500.0,0.00027397,7]
[344772295,1733781032946,-285.738446,0.00027738,2]
[344772296,1733781032956,-165.881497,0.00027962,2]
[344772297,1733781032966,-180.21521658,0.00028153,2]
[344772298,1733781032976,-1725.2480251,0.00028218,2]
[344772299,1733781032989,-170.808925,0.00028253,2]
[344772300,1733781032998,-301.082,0.0002852,2]
[344772302,1733781033007,-500.0,0.00028767,9]
[344772304,1733781033017,-300.0,0.00028885,2]
[344772306,1733781033027,-300.0,0.00028885,2]
[344772308,1733781033037,-150.0,0.00028886,2]
[344772310,1733781033048,-153.502,0.00028886,2]
[344772313,1733781033059,-2416.483,0.00028886,2]
[344772316,1733781033069,-1717.6210295,0.00028886,2]
[344772318,1733781033081,-448.3789705,0.00028886,2]
[344772320,1733781033091,-245.90856787,0.00029667,2]
[344772322,1733781033101,-3430.61853495,0.00029679,2]
[344772323,1733781033110,-212.3342337,0.00029752,2]
[344772324,1733781033119,-351.33522375,0.00029763,2]
[344772325,1733781033129,-1000.0,0.00029774,2]
[344772326,1733781033140,-351.3352237,0.00029784,2]
[344772327,1733781033150,-153.73,0.000298,31]
[344772328,1733781033160,-153.73,0.000298,31]
[344772329,1733781033170,-153.73,0.000298,31]
[344772330,1733781033180,-351.3352237,0.00029804,2]
[344772331,1733781033191,-351.3352237,0.00029825,2]
[344772332,1733781033201,-351.3352237,0.00029845,2]
[344772333,1733781033212,-302.72757545,0.00029857,2]
[344772334,1733781033222,-160.65876305,0.00029862,10]
[344772335,1733781033232,-500.0,0.00029862,2]
[344772336,1733781033249,-500.0,0.00029862,2]
[344772337,1733781033259,-208.70057913,0.00029862,2]
[344772338,1733781033274,-426.6148749,0.00029862,2]
[344772339,1733781033284,-500.0,0.00029862,2]
[344772340,1733781033293,-500.0,0.00029863,7]
[344772341,1733781033304,-500.0,0.00029863,7]
[344772342,1733781033313,-500.0,0.00029863,7]
[344772343,1733781033323,-500.0,0.00029863,7]
[344772344,1733781033332,-500.0,0.00029863,7]
[344772345,1733781033342,-500.0,0.00029863,7]
[344772346,1733781033353,-575.19,0.00029863,7]
[344772347,1733781033363,-575.19,0.00029863,7]
[344772348,1733781033373,-575.19,0.00029863,7]
[344772349,1733781033383,-500.0,0.00029863,7]
[344772350,1733781033393,-500.0,0.00029863,7]
[344772351,1733781033402,-500.0,0.00029863,7]
[344772352,1733781033412,-517.23702748,0.00029863,7]
[344772353,1733781033421,-504.03481944,0.00029863,7]
[344772354,1733781033430,-287.43468823,0.00029863,7]
[344772355,1733781033443,-503.62639058,0.00029863,7]
[344772356,1733781033454,-504.41037449,0.00029863,7]
[344772357,1733781033463,-193.3747333,0.00029863,7]
[344772358,1733781033473,-348.75554268,0.00029863,7]
[344772359,1733781033483,-520.49078373,0.00029863,7]
[344772360,1733781033495,-500.0,0.00029863,7]
[344772361,1733781033505,-500.0,0.00029863,7]
[344772362,1733781033515,-500.0,0.00029863,7]
[344772363,1733781033526,-500.0,0.00029863,7]
[344772364,1733781033536,-500.0,0.00029863,7]
[344772365,1733781033548,-500.0,0.00029863,7]
[344772366,1733781033557,-500.0,0.00029863,7]
[344772367,1733781033567,-500.0,0.00029863,7]
[344772368,1733781033577,-500.0,0.00029863,7]
[344772369,1733781033587,-500.0,0.00029863,7]
[344772370,1733781033598,-500.0,0.00029863,7]
[344772371,1733781033607,-500.0,0.00029863,7]
[344772372,1733781033618,-500.0,0.00029863,7]
[344772373,1733781033627,-500.0,0.00029863,7]
[344772374,1733781033637,-223.92,0.00029863,7]
[344772375,1733781033647,-500.0,0.00029863,7]
[344772376,1733781033657,-500.0,0.00029863,7]
[344772377,1733781033666,-500.0,0.00029863,7]
[344772378,1733781033676,-500.0,0.00029863,7]
[344772379,1733781033685,-500.0,0.00029863,7]
[344772380,1733781033695,-500.0,0.00029863,7]
[344772381,1733781033705,-500.0,0.00029863,7]
[344772382,1733781033715,-500.0,0.00029863,7]
[344772383,1733781033725,-500.0,0.00029863,7]
[344772384,1733781033740,-500.0,0.00029863,7]
[344772385,1733781033751,-500.0,0.00029863,7]
[344772386,1733781033762,-621.88942797,0.00029863,7]
[344772387,1733781033771,-500.0,0.00029863,7]
[344772388,1733781033785,-500.0,0.00029863,7]
[344772389,1733781033795,-500.0,0.00029863,7]
[344772390,1733781033805,-500.0,0.00029863,7]
[344772391,1733781033815,-500.0,0.00029863,7]
[344772392,1733781033826,-500.0,0.00029863,7]
[344772393,1733781033837,-500.0,0.00029863,7]
[344772394,1733781033846,-500.0,0.00029863,7]
[344772395,1733781033857,-500.0,0.00029863,7]
[344772396,1733781033866,-500.0,0.00029863,7]
[344772397,1733781033877,-500.0,0.00029863,7]
[344772398,1733781033887,-500.0,0.00029863,7]
[344772399,1733781033897,-500.0,0.00029863,7]
[344772400,1733781033907,-500.0,0.00029863,7]
[344772401,1733781033917,-500.0,0.00029863,7]
[344772402,1733781033928,-500.0,0.00029863,7]
[344772403,1733781033940,-500.0,0.00029863,7]
[344772404,1733781033952,-500.0,0.00029863,7]
[344772405,1733781033963,-437.85776623,0.00029863,7]
[344772406,1733781033974,-525.39299285,0.00029863,7]
[344772407,1733781033990,-500.0,0.00029863,7]
[344772408,1733781034002,-500.0,0.00029863,7]
[344772409,1733781034013,-500.0,0.00029863,7]
[344772410,1733781034023,-500.0,0.00029863,7]
[344772411,1733781034034,-500.0,0.00029863,7]
[344772412,1733781034044,-500.0,0.00029863,7]
[344772413,1733781034054,-500.0,0.00029863,7]
[344772414,1733781034064,-500.0,0.00029863,7]
[344772415,1733781034075,-500.0,0.00029863,7]
[344772416,1733781034086,-500.0,0.00029863,7]
[344772417,1733781034096,-500.0,0.00029863,7]
[344772418,1733781034106,-500.0,0.00029863,7]
[344772419,1733781034117,-500.0,0.00029863,7]
[344772420,1733781034128,-500.0,0.00029863,7]
[344772421,1733781034138,-178.95831705,0.00029863,7]
[344772422,1733781034148,-500.0,0.00029863,7]
[344772423,1733781034158,-500.0,0.00029863,7]
[344772424,1733781034169,-500.0,0.00029863,7]
[344772425,1733781034180,-500.0,0.00029863,7]
[344772426,1733781034190,-500.0,0.00029863,7]
[344772427,1733781034201,-500.0,0.00029863,7]
[344772428,1733781034211,-500.0,0.00029863,7]
[344772429,1733781034227,-500.0,0.00029863,7]
[344772430,1733781034242,-500.0,0.00029863,7]
[344772431,1733781034252,-500.0,0.00029863,7]
[344772432,1733781034263,-500.0,0.00029863,7]
[344772433,1733781034276,-500.0,0.00029863,7]
[344772434,1733781034290,-500.0,0.00029863,7]
[344772435,1733781034301,-500.0,0.00029863,7]
[344772436,1733781034312,-500.0,0.00029863,7]
[344772437,1733781034326,-500.0,0.00029863,7]
[344772438,1733781034337,-500.0,0.00029863,7]
[344772439,1733781034348,-500.0,0.00029863,7]
[344772440,1733781034358,-500.0,0.00029863,7]
[344772441,1733781034368,-500.0,0.00029863,7]
[344772442,1733781034379,-500.0,0.00029863,7]
[344772443,1733781034388,-500.0,0.00029863,7]
[344772444,1733781034398,-500.0,0.00029863,7]
[344772445,1733781034408,-500.0,0.00029863,7]
[344772446,1733781034420,-500.0,0.00029863,7]
[344772447,1733781034430,-500.0,0.00029863,7]
[344772448,1733781034440,-500.0,0.00029863,7]
[344772449,1733781034452,-500.0,0.00029863,7]
[344772450,1733781034463,-500.0,0.00029863,7]
[344772451,1733781034473,-500.0,0.00029863,7]
[344772452,1733781034483,-500.0,0.00029863,7]
[344772453,1733781034498,-500.0,0.00029863,7]
[344772454,1733781034509,-500.0,0.00029863,7]
[344772455,1733781034519,-500.0,0.00029863,7]
[344772456,1733781034529,-500.0,0.00029863,7]
[344772457,1733781034539,-188.12240066,0.00029863,7]
[344772458,1733781034549,-500.0,0.00029863,7]
[344772459,1733781034559,-500.0,0.00029863,7]
[344772460,1733781034569,-500.0,0.00029863,7]
[344772461,1733781034579,-500.0,0.00029863,7]
[344772462,1733781034588,-500.0,0.00029863,7]
[344772463,1733781034599,-500.0,0.00029863,7]
[344772464,1733781034608,-500.0,0.00029863,7]
[344772465,1733781034618,-618.37,0.00029863,7]
[344772466,1733781034627,-500.0,0.00029863,7]
[344772467,1733781034637,-500.0,0.00029863,7]
[344772468,1733781034647,-500.0,0.00029863,7]
[344772469,1733781034657,-500.0,0.00029863,7]
[344772470,1733781034667,-500.42553546,0.00029863,7]
[344772471,1733781034677,-500.0,0.00029863,7]
[344772472,1733781034686,-500.0,0.00029863,7]
[344772473,1733781034696,-500.0,0.00029863,7]
[344772474,1733781034706,-500.0,0.00029863,7]
[344772475,1733781034716,-2847.68,0.00029863,7]
[344772476,1733781034725,-2847.68,0.00029863,7]
[344772477,1733781034735,-2847.68,0.00029863,7]
[344772478,1733781034747,-2847.68,0.00029863,7]
[344772479,1733781034757,-2847.68,0.00029863,7]
[344772480,1733781034767,-2847.68,0.00029863,7]
[344772481,1733781034777,-2847.68,0.00029863,7]
[344772482,1733781034787,-2847.68,0.00029863,7]
[344772483,1733781034798,-504.1025015,0.00029863,7]
[344772484,1733781034808,-500.0,0.00029863,7]
[344772485,1733781034818,-500.0,0.00029863,7]
[344772486,1733781034828,-500.0,0.00029863,7]
[344772487,1733781034838,-500.0,0.00029863,7]
[344772488,1733781034849,-500.0,0.00029863,7]
[344772489,1733781034858,-500.0,0.00029863,7]
[344772490,1733781034868,-255.99172884,0.00029863,7]
[344772491,1733781034878,-500.0,0.00029863,7]
[344772492,1733781034887,-500.0,0.00029863,7]
[344772493,1733781034896,-471.60684315,0.00029863,7]
[344772494,1733781034913,-28.39315685,0.00029863,7]
[344772495,1733781034923,-471.60684315,0.00029863,7]
[344772496,1733781034934,-28.39315685,0.00029863,7]
[344772497,1733781034944,-500.0,0.00029863,7]
[344772498,1733781034953,-500.0,0.00029863,7]
[344772499,1733781034967,-500.0,0.00029863,7]
[344772500,1733781034977,-500.0,0.00029863,7]
[344772501,1733781034991,-500.0,0.00029863,7]
[344772502,1733781035000,-181.12811035,0.00029863,7]
[344772503,1733781035013,-318.87188965,0.00029863,7]
[344772504,1733781035023,-461.07911035,0.00029863,7]
[344772505,1733781035035,-38.92088965,0.00029863,7]
[344772506,1733781035043,-500.0,0.00029863,7]
[344772507,1733781035052,-315.80884621,0.00029863,7]
[344772508,1733781035061,-177.74649974,0.00029863,7]
[344772509,1733781035073,-1265.37350026,0.00029863,7]
[344772510,1733781035082,-1443.12,0.00029863,7]
[344772511,1733781035092,-1443.12,0.00029863,7]
[344772512,1733781035102,-1443.12,0.00029863,7]
[344772513,1733781035111,-1443.12,0.00029863,7]
[344772514,1733781035120,-1443.12,0.00029863,7]
[344772515,1733781035130,-500.0,0.00029863,7]
[344772516,1733781035139,-1443.12,0.00029863,7]
[344772517,1733781035149,-1443.12,0.00029863,7]
[344772518,1733781035159,-816.29686341,0.00029863,7]
[344772519,1733781035171,-330.3172,0.00029863,7]
[344772546,1733781038834,-296.50593659,0.00029863,7]
[344772547,1733781038844,-500.0,0.00029863,7]
[344772549,1733781038854,-500.0,0.00029863,7]
[344772551,1733781038863,-500.0,0.00029863,7]
[344772553,1733781038872,-500.0,0.00029863,7]
[344772555,1733781038882,-500.0,0.00029863,7]
[344772557,1733781038891,-500.0,0.00029863,7]
[344772559,1733781038901,-500.0,0.00029863,7]
[344772562,1733781038912,-500.0,0.00029863,7]
[344772563,1733781038921,-500.0,0.00029863,7]
[344772564,1733781038931,-500.0,0.00029863,7]
[344772565,1733781038941,-500.0,0.00029863,7]
[344772566,1733781038952,-500.0,0.00029863,7]
[344772567,1733781038962,-500.0,0.00029863,7]
[344772568,1733781038972,-500.0,0.00029863,7]
[344772569,1733781038982,-500.0,0.00029863,7]
[344772570,1733781038997,-174.18874483,0.00029863,7]
[344772571,1733781039011,-325.81125517,0.00029863,7]
[344772572,1733781039021,-500.0,0.00029863,7]
[344772573,1733781039031,-500.0,0.00029863,7]
[344772574,1733781039041,-500.0,0.00029863,7]
[344772576,1733781039051,-500.0,0.00029863,7]
[344772578,1733781039061,-500.0,0.00029863,7]
[344772579,1733781039071,-500.0,0.00029863,7]
[344772581,1733781039081,-500.0,0.00029863,7]
[344772582,1733781039091,-500.0,0.00029863,7]
[344772583,1733781039101,-333.912494,0.00029863,7]
[344772585,1733781039111,-500.0,0.00029863,7]
[344772587,1733781039121,-500.0,0.00029863,7]
[344772589,1733781039132,-500.0,0.00029863,7]
[344772590,1733781039141,-500.0,0.00029863,7]
[344772592,1733781039151,-500.0,0.00029863,7]
[344772593,1733781039160,-500.0,0.00029863,7]
[344772594,1733781039170,-500.0,0.00029863,7]
[344772595,1733781039179,-500.0,0.00029863,7]
[344772596,1733781039189,-484.47193771,0.00029863,7]
[344772597,1733781039198,-500.0,0.00029863,7]
[344772598,1733781039208,-500.0,0.00029863,7]
[344772599,1733781039218,-500.0,0.00029863,7]
[344772600,1733781039227,-500.0,0.00029863,7]
[344772601,1733781039236,-500.0,0.00029863,7]
[344772602,1733781039251,-500.0,0.00029863,7]
[344772603,1733781039261,-500.0,0.00029863,7]
[344772604,1733781039274,-500.0,0.00029863,7]
[344772605,1733781039284,-500.0,0.00029863,7]
[344772606,1733781039294,-500.0,0.00029863,7]
[344772607,1733781039303,-500.0,0.00029863,7]
[344772608,1733781039313,-242.73300257,0.00029863,7]
[344772609,1733781039323,-500.0,0.00029863,7]
[344772610,1733781039333,-365.69420277,0.00029863,7]
[344772611,1733781039343,-500.0,0.00029863,7]
[344772612,1733781039353,-500.0,0.00029863,7]
[344772613,1733781039363,-500.0,0.00029863,7]
[344772614,1733781039372,-500.0,0.00029863,7]
[344772615,1733781039381,-500.0,0.00029863,7]
[344772616,1733781039390,-500.0,0.00029863,7]
[344772617,1733781039399,-500.0,0.00029863,7]
[344772618,1733781039409,-500.0,0.00029863,7]
[344772619,1733781039418,-500.0,0.00029863,7]
[344772620,1733781039428,-500.0,0.00029863,7]
[344772621,1733781039438,-535.38678838,0.00029863,7]
[344772622,1733781039447,-500.0,0.00029863,7]
[344772623,1733781039456,-500.0,0.00029863,7]
[344772624,1733781039466,-500.0,0.00029863,7]
[344772625,1733781039476,-500.0,0.00029863,7]
[344772626,1733781039486,-500.0,0.00029863,7]
[344772627,1733781039502,-500.0,0.00029863,7]
[344772628,1733781039515,-500.0,0.00029863,7]
[344772629,1733781039526,-500.0,0.00029863,7]
[344772630,1733781039536,-500.0,0.00029863,7]
[344772631,1733781039546,-156.5796884,0.00029863,7]
[344772632,1733781039556,-507.53147458,0.00029863,7]
[344772633,1733781039565,-508.48310795,0.00029863,7]
[344772634,1733781039575,-500.0,0.00029863,7]
[344772635,1733781039584,-500.0,0.00029863,7]
[344772636,1733781039593,-151.03327568,0.00029863,7]
[344772637,1733781039604,-500.0,0.00029863,7]
[344772638,1733781039614,-500.0,0.00029863,7]
[344772639,1733781039625,-576.57282654,0.00029863,7]
[344772640,1733781039635,-500.0,0.00029863,7]
[344772641,1733781039645,-500.0,0.00029863,7]
[344772642,1733781039655,-500.0,0.00029863,7]
[344772643,1733781039665,-500.0,0.00029863,7]
[344772644,1733781039675,-500.0,0.00029863,7]
[344772645,1733781039688,-500.0,0.00029863,7]
[344772646,1733781039699,-500.0,0.00029863,7]
[344772647,1733781039708,-500.0,0.00029863,7]
[344772648,1733781039718,-500.0,0.00029863,7]
[344772649,1733781039729,-500.0,0.00029863,7]
[344772650,1733781039744,-500.0,0.00029863,7]
[344772651,1733781039754,-500.0,0.00029863,7]
[344772652,1733781039764,-500.0,0.00029863,7]
[344772653,1733781039775,-500.0,0.00029863,7]
[344772654,1733781039786,-200.0,0.00029863,7]
[344772655,1733781039796,-200.0,0.00029863,7]
[344772656,1733781039807,-200.0,0.00029863,7]
[344772657,1733781039818,-200.0,0.00029863,7]
[344772658,1733781039831,-200.0,0.00029863,7]
[344772659,1733781039842,-200.0,0.00029863,7]
[344772660,1733781039852,-200.0,0.00029863,7]
[344772661,1733781039862,-500.0,0.00029863,7]
[344772662,1733781039872,-500.0,0.00029863,7]
[344772663,1733781039882,-500.0,0.00029863,7]
[344772664,1733781039892,-500.0,0.00029863,7]
[344772665,1733781039902,-500.0,0.00029863,7]
[344772666,1733781039912,-500.0,0.00029863,7]
[344772667,1733781039922,-500.0,0.00029863,7]
[344772668,1733781039933,-1139.3,0.00029863,7]
[344772669,1733781039943,-1139.3,0.00029863,7]
[344772670,1733781039953,-1139.3,0.00029863,7]
[344772671,1733781039964,-1139.3,0.00029863,7]
[344772672,1733781039975,-1139.3,0.00029863,7]
[344772673,1733781039986,-1139.3,0.00029863,7]
[344772674,1733781040004,-1139.3,0.00029863,7]
[344772675,1733781040013,-1139.3,0.00029863,7]
[344772676,1733781040023,-500.0,0.00029863,7]
[344772677,1733781040033,-500.0,0.00029863,7]
[344772678,1733781040043,-500.0,0.00029863,7]
[344772679,1733781040053,-500.0,0.00029863,7]
[344772680,1733781040066,-500.0,0.00029863,7]
[344772681,1733781040076,-500.0,0.00029863,7]
[344772682,1733781040085,-500.0,0.00029863,7]
[344772683,1733781040095,-500.0,0.00029863,7]
[344772684,1733781040105,-500.0,0.00029863,7]
[344772685,1733781040115,-505.78823788,0.00029863,7]
[344772686,1733781040124,-500.0,0.00029863,7]
[344772687,1733781040135,-509.21215078,0.00029863,7]
[344772689,1733781040145,-500.0,0.00029863,7]
[344772691,1733781040156,-504.11564766,0.00029863,7]
[344772692,1733781040166,-225.78338241,0.00029863,7]
[344772693,1733781040177,-508.22942457,0.00029863,7]
[344772694,1733781040188,-509.97141029,0.00029863,7]
[344772695,1733781040198,-506.49556828,0.00029863,7]
[344772696,1733781040208,-500.0,0.00029863,7]
[344772697,1733781040218,-500.0,0.00029863,7]
[344772698,1733781040228,-500.0,0.00029863,7]
[344772699,1733781040245,-500.0,0.00029863,7]
[344772700,1733781040256,-500.0,0.00029863,7]
[344772701,1733781040268,-504.0011566,0.00029863,7]
[344772702,1733781040281,-628.13175391,0.00029863,7]
[344772703,1733781040291,-500.0,0.00029863,7]
[344772704,1733781040301,-570.50083856,0.00029863,7]
[344772705,1733781040313,-504.7653376,0.00029863,7]
[344772706,1733781040323,-188.0164954,0.00029863,7]